bitfinex/quotes_BTCUSD_20230904
["timestamp","ask_amount","ask_price","bid_price","bid_amount"]
[1693824382489,0.126577,25882.0,25881.0,0.0964]
[1693824382692,0.137577,25882.0,25881.0,0.0964]
[1693824382891,0.42131082,25882.0,25881.0,0.0964]
[1693824384014,0.42131082,25882.0,25881.0,0.3964]
[1693824384234,0.42131082,25882.0,25881.0,0.4269398]
[1693824387908,0.69949849,25882.0,25881.0,0.0315398]
[1693824388109,0.69949849,25882.0,25881.0,0.001]
[1693824388110,0.54466378,25882.0,25881.0,0.001]
[1693824388697,0.78544661,25882.0,25881.0,0.001]
[1693824388839,0.52566378,25882.0,25878.0,0.0954]
[1693824389042,0.66641701,25881.0,25878.0,0.0954]
[1693824389245,0.138577,25879.0,25878.0,0.0954]
[1693824389468,0.52566378,25879.0,25878.0,0.0954]
[1693824391180,0.53266378,25879.0,25878.0,0.0974]
[1693824391740,0.82796289,25879.0,25878.0,0.0964]
[1693824391945,0.82796289,25879.0,25878.0,0.0974]
[1693824391946,0.83796289,25879.0,25878.0,0.0974]
[1693824393654,0.45087611,25879.0,25878.0,0.0974]
[1693824393830,0.155577,25879.0,25878.0,0.18990678]
[1693824396116,0.155577,25879.0,25878.0,0.18490678]
[1693824396511,0.155577,25879.0,25878.0,0.32368075]
[1693824398300,0.155577,25879.0,25878.0,0.23117397]
[1693824407034,0.155577,25879.0,25878.0,0.26234324]
[1693824412728,0.155577,25879.0,25878.0,0.27403635]
[1693824421136,0.155577,25879.0,25878.0,0.33440863]
[1693824421763,0.39834824,25879.0,25878.0,0.36662916]
[1693824422143,0.39834824,25879.0,25878.0,0.35493915]
[1693824422417,0.39834824,25879.0,25878.0,0.21616518]
[1693824423599,0.155577,25879.0,25878.0,0.21616518]
[1693824425448,0.155577,25879.0,25878.0,0.32271659]
[1693824426247,0.155577,25879.0,25878.0,0.36899488]
[1693824428068,0.135577,25879.0,25878.0,0.36899488]
[1693824428332,0.155577,25879.0,25878.0,0.36899488]
[1693824429132,0.135577,25879.0,25878.0,0.62031021]
[1693824429649,0.155577,25879.0,25878.0,0.62031021]
[1693824430065,0.155577,25879.0,25878.0,0.63179864]
[1693824430804,0.155577,25879.0,25878.0,0.62031021]
[1693824431207,0.155577,25879.0,25878.0,0.43525795]
[1693824433286,0.155577,25879.0,25878.0,0.41525795]
[1693824436115,0.155577,25879.0,25878.0,0.38408868]
[1693824437555,0.38467192,25879.0,25878.0,0.38408868]
[1693824441428,0.155577,25879.0,25878.0,0.38408868]
[1693824443613,0.155577,25879.0,25878.0,0.40408868]
[1693824447569,0.155577,25879.0,25878.0,0.38408868]
[1693824452195,0.155577,25879.0,25878.0,0.41449118]
[1693824457945,0.69749849,25879.0,25878.0,0.23183955]
[1693824458127,0.69749849,25879.0,25878.0,0.002]
[1693824458128,0.83357069,25879.0,25878.0,0.002]
[1693824458335,0.83357069,25879.0,25878.0,0.09471187]
[1693824458336,0.76609416,25879.0,25878.0,0.09471187]
[1693824458951,0.76609416,25879.0,25878.0,0.002]
[1693824459153,0.75909416,25879.0,25878.0,0.001]
[1693824459325,0.78309416,25879.0,25878.0,0.001]
[1693824460456,0.39600738,25879.0,25878.0,0.001]
[1693824460635,0.38600738,25879.0,25878.0,0.09271187]
[1693824461051,0.41000738,25879.0,25878.0,0.18811187]
[1693824464719,0.79709416,25879.0,25878.0,0.18811187]
[1693824465925,0.57366378,25879.0,25878.0,0.18811187]
[1693824471861,0.84193335,25879.0,25878.0,0.18811187]
[1693824472078,0.84193335,25879.0,25878.0,0.0954]
[1693824481306,0.186577,25879.0,25878.0,0.0954]
[1693824484506,0.186577,25879.0,25878.0,0.18811187]
[1693824485221,0.186577,25879.0,25878.0,0.2344637]
[1693824485435,0.186577,25879.0,25878.0,0.41988196]
[1693824489498,0.186577,25879.0,25878.0,0.28081826]
[1693824491685,0.048,25879.0,25878.0,0.42211533]
[1693824491881,0.048,25879.0,25878.0,0.50248474]
[1693824491882,0.186577,25879.0,25878.0,0.50248474]
[1693824492130,0.048,25879.0,25878.0,0.50248474]
[1693824492295,0.02,25883.0,25878.0,1.08469919]
[1693824492296,0.04,25883.0,25878.0,1.08469919]
[1693824492496,0.118577,25883.0,25882.0,0.23429159]
[1693824493407,0.042,25883.0,25882.0,0.23429159]
[1693824493652,0.045,25883.0,25882.0,0.25429159]
[1693824493766,0.120577,25883.0,25882.0,0.25429159]
[1693824494835,0.120577,25883.0,25882.0,0.34685978]
[1693824495039,0.119577,25883.0,25882.0,0.26029159]
[1693824495263,0.119577,25883.0,25882.0,0.4482406]
[1693824495461,0.120577,25883.0,25882.0,0.4522406]
[1693824495706,0.119577,25883.0,25882.0,0.4462406]
[1693824495915,0.118577,25883.0,25882.0,0.4422406]
[1693824496269,0.120577,25883.0,25882.0,0.31334901]
[1693824496694,0.120577,25883.0,25882.0,0.46783501]
[1693824497413,0.120577,25883.0,25882.0,0.76783501]
[1693824497414,0.002,25883.0,25882.0,0.76783501]
[1693824497620,0.042,25883.0,25882.0,0.76783501]
[1693824500898,0.042,25883.0,25882.0,0.675286]
[1693824504946,0.042,25883.0,25882.0,0.70552823]
[1693824506662,0.04,25886.0,25882.0,1.34868355]
[1693824506864,0.04,25886.0,25885.0,0.1908]
[1693824507083,0.04,25886.0,25885.0,0.4908]
[1693824508550,0.04,25886.0,25885.0,0.4948]
[1693824508907,0.041,25886.0,25885.0,0.4998]
[1693824509741,0.001,25886.0,25885.0,0.5198]
[1693824509949,0.041,25886.0,25885.0,0.5198]
[1693824511113,0.001,25886.0,25885.0,0.58898]
[1693824511320,0.001,25886.0,25885.0,0.58784]
[1693824511525,0.001,25886.0,25885.0,1.80688678]
[1693824512343,0.001,25886.0,25885.0,1.88572678]
[1693824512560,0.001,25886.0,25885.0,1.87834678]
[1693824512764,0.001,25886.0,25885.0,1.80688678]
[1693824513785,0.001,25886.0,25885.0,1.89010678]
[1693824513943,0.001,25886.0,25885.0,1.88476678]
[1693824514164,0.001,25886.0,25885.0,1.80688678]
[1693824515117,0.001,25886.0,25885.0,1.88122678]
[1693824515292,0.001,25886.0,25885.0,1.80688678]
[1693824515495,0.001,25886.0,25885.0,1.88854678]
[1693824515701,0.001,25886.0,25885.0,1.88878678]
[1693824515874,0.001,25886.0,25885.0,1.80688678]
[1693824516075,0.001,25886.0,25885.0,1.88920678]
[1693824516276,0.001,25886.0,25885.0,1.80688678]
[1693824516867,0.04943206,25888.0,25885.0,1.88682631]
[1693824517064,0.04943206,25888.0,25887.0,0.1908]
[1693824517264,0.04943206,25888.0,25887.0,0.5108]
[1693824517477,0.118577,25889.0,25887.0,0.5108]
[1693824517680,0.118577,25889.0,25888.0,0.5108]
[1693824518915,0.142577,25889.0,25888.0,0.5128]
[1693824519299,0.118577,25889.0,25888.0,0.5158]
[1693824519498,0.118577,25889.0,25888.0,0.5108]
[1693824519967,0.118577,25889.0,25888.0,0.5158]
[1693824520617,0.118577,25889.0,25888.0,0.5178]
[1693824521352,0.04,25889.0,25888.0,0.5178]
[1693824521561,0.1919,25890.0,25888.0,0.5178]
[1693824521766,0.1919,25890.0,25889.0,0.0954]
[1693824522582,0.04,25890.0,25889.0,0.0954]
[1693824522992,0.044,25890.0,25889.0,0.0954]
[1693824523905,0.05,25890.0,25889.0,0.0964]
[1693824524311,0.128577,25890.0,25889.0,0.0964]
[1693824524521,0.128577,25890.0,25889.0,0.1164]
[1693824524937,0.05,25890.0,25889.0,0.1164]
[1693824525181,0.05,25890.0,25889.0,0.5118]
[1693824525387,0.128577,25890.0,25889.0,0.4164]
[1693824529691,0.01,25890.0,25889.0,0.5118]
[1693824530248,0.01,25890.0,25889.0,0.89888678]
[1693824531285,0.01,25890.0,25889.0,0.96392678]
[1693824531492,0.004,25890.0,25889.0,0.89788678]
[1693824531694,0.006,25890.0,25889.0,0.91788678]
[1693824531899,0.002,25890.0,25889.0,0.98298678]
[1693824532099,0.004,25890.0,25889.0,1.00534678]
[1693824532251,0.004,25890.0,25889.0,1.00540678]
[1693824532455,0.004,25890.0,25889.0,1.00552678]
[1693824532650,0.004,25890.0,25889.0,1.00660678]
[1693824532835,0.004,25890.0,25889.0,1.00666678]
[1693824533034,0.004,25890.0,25889.0,1.00684678]
[1693824533309,0.002,25890.0,25889.0,0.98702678]
[1693824533516,0.002,25890.0,25889.0,0.98714678]
[1693824533722,0.004,25890.0,25889.0,1.00726678]
[1693824533903,0.004,25890.0,25889.0,1.00768678]
[1693824534108,0.004,25890.0,25889.0,0.93988678]
[1693824534253,0.004,25890.0,25889.0,0.99854906]
[1693824534883,0.004,25890.0,25889.0,1.06346906]
[1693824535082,0.004,25890.0,25889.0,1.06340906]
[1693824535307,0.004,25890.0,25889.0,1.06400906]
[1693824535486,0.004,25890.0,25889.0,1.06406906]
[1693824535689,0.004,25890.0,25889.0,1.06430906]
[1693824535889,0.004,25890.0,25889.0,1.06460906]
[1693824536085,0.004,25890.0,25889.0,1.06484906]
[1693824536427,0.004,25890.0,25889.0,1.06688906]
[1693824536754,0.004,25890.0,25889.0,1.06964906]
[1693824536929,0.004,25890.0,25889.0,1.07120906]
[1693824537130,0.004,25890.0,25889.0,1.07054906]
[1693824537331,0.004,25890.0,25889.0,1.07222906]
[1693824537533,0.004,25890.0,25889.0,1.07234906]
[1693824537740,0.004,25890.0,25889.0,1.07102906]
[1693824537963,0.004,25890.0,25889.0,1.07312906]
[1693824538165,0.004,25890.0,25889.0,1.07072906]
[1693824538315,0.004,25890.0,25889.0,1.07090906]
[1693824538515,0.004,25890.0,25889.0,1.07348906]
[1693824538720,0.004,25890.0,25889.0,1.07312906]
[1693824538883,0.004,25890.0,25889.0,1.07330906]
[1693824539087,0.004,25890.0,25889.0,1.07390906]
[1693824539288,0.004,25890.0,25889.0,1.07426906]
[1693824539482,0.004,25890.0,25889.0,1.07132906]
[1693824539684,0.004,25890.0,25889.0,1.07366906]
[1693824539932,0.004,25890.0,25889.0,1.07306906]
[1693824540109,0.004,25890.0,25889.0,1.07408906]
[1693824540324,0.004,25890.0,25889.0,1.07444906]
[1693824540881,0.004,25890.0,25889.0,1.07606906]
[1693824541085,0.004,25890.0,25889.0,1.07582906]
[1693824541572,0.004,25890.0,25889.0,1.07564906]
[1693824541774,0.004,25890.0,25889.0,1.07558906]
[1693824541979,0.004,25890.0,25889.0,1.07618906]
[1693824542186,0.004,25890.0,25889.0,1.07642906]
[1693824542602,0.004,25890.0,25889.0,1.07690906]
[1693824542804,0.004,25890.0,25889.0,1.07618906]
[1693824543011,0.118577,25892.0,25891.0,0.9]
[1693824543212,0.118577,25892.0,25891.0,1.4108]
[1693824544040,0.118577,25892.0,25891.0,1.4128]
[1693824544370,0.118577,25892.0,25891.0,1.567226]
[1693824544796,0.118577,25892.0,25891.0,1.572226]
[1693824546492,0.1596,25894.0,25891.0,1.572226]
[1693824546711,0.278177,25894.0,25893.0,0.1908]
[1693824546897,0.118577,25894.0,25893.0,0.3954]
[1693824547242,0.118577,25894.0,25893.0,0.4154]
[1693824548424,0.131577,25894.0,25893.0,0.4164]
[1693824549256,0.013,25894.0,25893.0,0.4164]
[1693824549462,0.131577,25894.0,25893.0,0.4164]
[1693824549690,0.146577,25894.0,25893.0,0.4174]
[1693824550868,0.028,25894.0,25893.0,0.4174]
[1693824551062,0.146577,25894.0,25893.0,0.4174]
[1693824561496,0.146577,25894.0,25893.0,0.42920602]
[1693824566859,0.146577,25894.0,25893.0,0.40920602]
[1693824566986,0.146577,25894.0,25893.0,0.42920602]
[1693824567202,0.146577,25894.0,25893.0,0.48728042]
[1693824568006,0.146577,25894.0,25893.0,0.48664081]
[1693824568007,0.145098,25894.0,25893.0,0.48664081]
[1693824572377,0.145098,25894.0,25893.0,0.48164081]
[1693824575171,0.145098,25894.0,25893.0,0.46164081]
[1693824576819,0.145098,25894.0,25893.0,0.55704081]
[1693824579206,0.026521,25894.0,25893.0,0.55704081]
[1693824579611,0.026521,25894.0,25893.0,0.64958982]
[1693824580622,0.026521,25894.0,25893.0,0.66958982]
[1693824580872,0.026521,25894.0,25893.0,0.80848141]
[1693824581076,0.026521,25894.0,25893.0,0.7159324]
[1693824581485,0.026521,25894.0,25893.0,1.2159324]
[1693824581943,0.026521,25894.0,25893.0,1.40112119]
[1693824582149,0.026521,25894.0,25893.0,1.2159324]
[1693824582327,0.026521,25894.0,25893.0,1.2622296]
[1693824582575,0.04920059,25897.0,25893.0,1.76325357]
[1693824582576,0.16777759,25897.0,25893.0,1.76325357]
[1693824582794,0.16777759,25897.0,25896.0,0.28343617]
[1693824583043,0.118577,25897.0,25896.0,0.58343617]
[1693824583257,0.118577,25897.0,25896.0,0.4908]
[1693824584537,0.118577,25897.0,25896.0,0.5108]
[1693824585166,0.142577,25897.0,25896.0,0.5128]
[1693824586963,0.102577,25897.0,25896.0,0.5128]
[1693824587363,0.024,25897.0,25896.0,0.5128]
[1693824588026,0.011,25897.0,25896.0,1.0118]
[1693824588359,0.118577,25899.0,25896.0,1.0148]
[1693824588565,0.118577,25899.0,25898.0,0.0954]
[1693824591003,0.129577,25899.0,25898.0,0.0964]
[1693824591251,0.142577,25899.0,25898.0,0.0974]
[1693824593876,0.142577,25899.0,25898.0,0.1174]
[1693824594055,0.142577,25899.0,25898.0,0.4174]
[1693824595039,0.142458,25899.0,25898.0,0.3974]
[1693824595238,0.142458,25899.0,25898.0,0.0974]
[1693824596163,0.140627,25899.0,25898.0,0.0974]
[1693824597030,0.140554,25899.0,25898.0,0.0974]
[1693824600190,0.140554,25899.0,25898.0,0.15413878]
[1693824600397,0.140554,25899.0,25898.0,0.45413878]
[1693824603457,0.140554,25899.0,25898.0,0.3974]
[1693824603687,0.160554,25899.0,25898.0,0.0974]
[1693824603894,0.43568611,25899.0,25898.0,0.0974]
[1693824620474,0.82277289,25899.0,25898.0,0.0974]
[1693824625031,0.82269189,25899.0,25898.0,0.0974]
[1693824650908,0.160473,25899.0,25898.0,0.0974]
[1693824651060,0.160473,25899.0,25898.0,0.18986722]
[1693824653110,0.160411,25899.0,25898.0,0.18986722]
[1693824653515,0.140411,25899.0,25898.0,0.18986722]
[1693824653668,0.160411,25899.0,25898.0,0.18986722]
[1693824653997,0.140411,25899.0,25898.0,0.18986722]
[1693824654175,0.160411,25899.0,25898.0,0.18986722]
[1693824654371,0.160411,25899.0,25898.0,0.0974]
[1693824658158,0.157856,25899.0,25898.0,0.0974]
[1693824660169,0.137781,25899.0,25898.0,0.0974]
[1693824660377,0.157781,25899.0,25898.0,0.0974]
[1693824662274,0.157781,25899.0,25898.0,0.15621591]
[1693824663599,0.075885,25900.0,25898.0,1.70278396]
[1693824663816,0.113781,25900.0,25899.0,0.53133345]
[1693824664019,0.113781,25900.0,25899.0,0.43880007]
[1693824664221,0.113781,25900.0,25899.0,0.45880007]
[1693824664609,0.113781,25900.0,25899.0,0.55130903]
[1693824665378,0.113781,25900.0,25899.0,0.41250896]
[1693824665557,0.114781,25900.0,25899.0,0.55128996]
[1693824666175,0.114588,25900.0,25899.0,0.55128996]
[1693824667366,0.114588,25900.0,25899.0,0.57428996]
[1693824668384,0.114588,25900.0,25899.0,0.481781]
[1693824669615,0.076692,25900.0,25899.0,0.481781]
[1693824669827,0.114588,25900.0,25899.0,0.481781]
[1693824670306,0.114588,25900.0,25899.0,0.672581]
[1693824670699,0.114588,25900.0,25899.0,0.76508996]
[1693824672408,0.076692,25900.0,25899.0,1.87701513]
[1693824672582,0.114588,25900.0,25899.0,1.87701513]
[1693824673519,0.114588,25900.0,25899.0,1.78450617]
[1693824675709,0.114588,25900.0,25899.0,1.68910617]
[1693824676096,0.114588,25900.0,25899.0,1.66910617]
[1693824678474,0.114588,25900.0,25899.0,1.70011254]
[1693824679922,0.114588,25900.0,25899.0,1.58633154]
[1693824686039,0.096692,25900.0,25899.0,1.58633154]
[1693824686327,0.114588,25900.0,25899.0,1.58633154]
[1693824696423,0.114588,25900.0,25899.0,1.6788405]
[1693824696999,0.114588,25900.0,25899.0,1.58633154]
[1693824697340,0.114588,25900.0,25899.0,1.6788405]
[1693824707003,0.114588,25900.0,25899.0,1.81764057]
[1693824708028,0.114588,25900.0,25899.0,1.72513161]
[1693824709832,0.114588,25900.0,25899.0,1.72521369]
[1693824711035,0.114588,25900.0,25899.0,1.77134806]
[1693824720283,0.114588,25900.0,25899.0,2.00251611]
[1693824721269,0.114588,25900.0,25899.0,1.77134806]
[1693824721474,0.114588,25900.0,25899.0,2.00251611]
[1693824721991,0.114588,25900.0,25899.0,1.77134806]
[1693824723277,0.114588,25900.0,25899.0,2.00251611]
[1693824723471,0.114588,25900.0,25899.0,1.77134806]
[1693824724098,0.114588,25900.0,25899.0,1.72533915]
[1693824724720,0.114588,25900.0,25899.0,1.58641362]
[1693824724929,0.114588,25900.0,25899.0,1.72534034]
[1693824735316,0.114588,25900.0,25899.0,1.7253439]
[1693824737153,0.114588,25900.0,25899.0,1.81796599]
[1693824737564,0.114588,25900.0,25899.0,1.7253439]
[1693824740390,0.09041575,25900.0,25899.0,1.7253439]
[1693824744659,0.09041575,25900.0,25899.0,2.67165399]
[1693824744885,0.09041575,25900.0,25899.0,2.90320446]
[1693824750237,0.001,25900.0,25899.0,2.90320446]
[1693824750458,0.001,25900.0,25899.0,2.75648062]
[1693824750731,0.001,25900.0,25899.0,2.65983407]
[1693824750964,0.001,25900.0,25899.0,2.65245407]
[1693824751196,0.001,25900.0,25899.0,2.58525407]
[1693824751452,0.001,25900.0,25899.0,3.06774085]
[1693824751928,0.001,25900.0,25899.0,2.16774085]
[1693824752391,0.001,25900.0,25899.0,2.94232085]
[1693824752629,0.001,25900.0,25899.0,2.86774085]
[1693824752855,0.001,25900.0,25899.0,2.94202085]
[1693824753111,0.001,25900.0,25899.0,2.94238085]
[1693824753342,0.001,25900.0,25899.0,2.94226085]
[1693824753581,0.001,25900.0,25899.0,3.84286085]
[1693824753790,0.001,25900.0,25899.0,3.84268085]
[1693824754066,0.001,25900.0,25899.0,3.84250085]
[1693824754262,0.001,25900.0,25899.0,3.84184085]
[1693824754481,0.001,25900.0,25899.0,3.84178085]
[1693824754888,0.001,25900.0,25899.0,3.84166085]
[1693824755063,0.001,25900.0,25899.0,3.84106085]
[1693824755247,0.001,25900.0,25899.0,3.84034085]
[1693824755444,0.001,25900.0,25899.0,3.83980085]
[1693824755673,0.001,25900.0,25899.0,3.83962085]
[1693824755846,0.001,25900.0,25899.0,3.83986085]
[1693824756189,0.001,25900.0,25899.0,3.83950085]
[1693824756389,0.001,25900.0,25899.0,3.77863693]
[1693824756611,0.001,25900.0,25899.0,3.78361693]
[1693824756822,0.001,25900.0,25899.0,3.78331693]
[1693824757031,0.001,25900.0,25899.0,3.78001693]
[1693824757202,0.001,25900.0,25899.0,3.78013693]
[1693824757410,0.001,25900.0,25899.0,4.01152875]
[1693824757584,0.001,25900.0,25899.0,4.01116875]
[1693824757791,0.001,25900.0,25899.0,4.01134875]
[1693824757991,0.001,25900.0,25899.0,4.01086875]
[1693824758240,0.001,25900.0,25899.0,4.01050875]
[1693824758438,0.001,25900.0,25899.0,4.01062875]
[1693824758647,0.001,25900.0,25899.0,4.01038875]
[1693824758843,0.001,25900.0,25899.0,4.01032875]
[1693824759045,0.001,25900.0,25899.0,4.01020875]
[1693824759249,0.001,25900.0,25899.0,4.01014875]
[1693824759454,0.001,25900.0,25899.0,4.00966875]
[1693824759786,0.001,25900.0,25899.0,4.00726875]
[1693824759960,0.001,25900.0,25899.0,4.00702875]
[1693824760092,0.001,25900.0,25899.0,4.00996875]
[1693824760304,0.001,25900.0,25899.0,4.00978875]
[1693824760511,0.001,25900.0,25899.0,4.00924875]
[1693824760725,0.001,25900.0,25899.0,4.00756875]
[1693824760959,0.001,25900.0,25899.0,3.97644238]
[1693824761155,0.001,25900.0,25899.0,3.97608238]
[1693824761571,0.001,25900.0,25899.0,3.98070238]
[1693824761778,0.001,25900.0,25899.0,3.97758238]
[1693824762179,0.001,25900.0,25899.0,3.97566238]
[1693824762402,0.001,25900.0,25899.0,3.97542238]
[1693824762625,0.001,25900.0,25899.0,3.97506238]
[1693824762757,0.001,25900.0,25899.0,3.97272238]
[1693824762959,0.001,25900.0,25899.0,3.90780238]
[1693824763769,0.001,25900.0,25899.0,3.23852585]
[1693824763996,0.001,25900.0,25899.0,3.23696585]
[1693824764304,0.001,25900.0,25899.0,3.23690585]
[1693824764521,0.001,25900.0,25899.0,3.23768585]
[1693824764785,0.001,25900.0,25899.0,3.23660585]
[1693824765049,0.001,25900.0,25899.0,3.23600585]
[1693824765286,0.001,25900.0,25899.0,3.23570585]
[1693824765517,0.001,25900.0,25899.0,3.93912585]
[1693824765750,0.001,25900.0,25899.0,3.93870585]
[1693824765993,0.001,25900.0,25899.0,3.93840585]
[1693824766200,0.001,25900.0,25899.0,4.13138585]
[1693824766403,0.001,25900.0,25899.0,4.13318585]
[1693824766613,0.001,25900.0,25899.0,4.12904585]
[1693824766853,0.001,25900.0,25899.0,4.12910585]
[1693824767050,0.001,25900.0,25899.0,3.42910585]
[1693824767225,0.001,25900.0,25899.0,3.43036585]
[1693824767439,0.001,25900.0,25899.0,3.43096585]
[1693824767620,0.001,25900.0,25899.0,3.43114585]
[1693824767817,0.001,25900.0,25899.0,3.43054585]
[1693824768073,0.001,25900.0,25899.0,3.43108585]
[1693824768289,0.001,25900.0,25899.0,3.43102585]
[1693824769058,0.001,25900.0,25899.0,4.13102585]
[1693824770848,0.001,25900.0,25899.0,4.06232585]
[1693824771049,0.001,25900.0,25899.0,4.19926832]
[1693824771298,0.001,25900.0,25899.0,4.19908832]
[1693824771499,0.001,25900.0,25899.0,4.19878832]
[1693824771707,0.001,25900.0,25899.0,4.19836832]
[1693824771940,0.001,25900.0,25899.0,4.19812832]
[1693824772124,0.05151975,25902.0,25899.0,4.19824832]
[1693824772323,0.05151975,25902.0,25901.0,0.32958422]
[1693824772527,0.05151975,25902.0,25901.0,1.74159147]
[1693824774272,0.0197,25903.0,25902.0,0.9]
[1693824774483,0.0197,25903.0,25902.0,3.07493966]
[1693824774682,0.0197,25903.0,25902.0,3.30633148]
[1693824774888,0.0197,25903.0,25902.0,3.37737148]
[1693824775083,1.05901975,25905.0,25902.0,3.19580585]
[1693824775283,1.0075,25905.0,25904.0,0.2833032]
[1693824775543,1.0075,25905.0,25904.0,2.08239723]
[1693824776283,1.0075,25905.0,25904.0,2.08739723]
[1693824777298,0.0197,25905.0,25904.0,2.08739723]
[1693824777703,0.0197,25905.0,25904.0,2.08239723]
[1693824778563,0.0197,25905.0,25904.0,2.11139723]
[1693824778964,0.07121975,25905.0,25904.0,2.11139723]
[1693824781510,0.0197,25905.0,25904.0,2.11139723]
[1693824782549,0.07121975,25905.0,25904.0,3.01139723]
[1693824783471,0.07121975,25905.0,25904.0,2.91889403]
[1693824783670,0.07121975,25905.0,25904.0,3.01139723]
[1693824785266,0.07121975,25905.0,25904.0,2.91889403]
[1693824785612,0.07121975,25905.0,25904.0,3.01139723]
[1693824787774,0.0197,25905.0,25904.0,2.11139723]
[1693824789576,0.07121975,25905.0,25904.0,3.01139723]
[1693824791378,0.30973987,25905.0,25904.0,2.52891045]
[1693824791583,0.30973987,25905.0,25904.0,2.43640725]
[1693824792467,0.30973987,25905.0,25904.0,1.53640725]
[1693824797185,0.30664887,25905.0,25904.0,1.53640725]
[1693824799551,0.36454487,25905.0,25904.0,1.23640725]
[1693824804345,0.12602475,25905.0,25904.0,1.23640725]
[1693824811299,0.11602475,25905.0,25904.0,1.23640725]
[1693824819717,0.11602475,25905.0,25904.0,1.32891045]
[1693824822879,0.11102475,25905.0,25904.0,1.32891045]
[1693824823091,0.11102475,25905.0,25904.0,1.42431045]
[1693824827476,0.05312875,25905.0,25904.0,1.42431045]
[1693824827648,0.11102475,25905.0,25904.0,1.42431045]
[1693824830486,0.05312875,25905.0,25904.0,2.41681366]
[1693824830687,0.11102475,25905.0,25904.0,2.41681366]
[1693824830901,0.11102475,25905.0,25904.0,2.43959431]
[1693824831942,0.11102475,25905.0,25904.0,2.41681366]
[1693824832398,0.11102475,25905.0,25904.0,2.80390044]
[1693824832835,0.11102475,25905.0,25904.0,2.41681366]
[1693824839126,0.11102475,25905.0,25904.0,2.55566582]
[1693824839552,0.11102475,25905.0,25904.0,2.37065941]
[1693824847326,0.11000027,25905.0,25904.0,2.37065941]
[1693824849965,0.11000027,25905.0,25904.0,2.55566582]
[1693824850367,0.11000027,25905.0,25904.0,2.74867582]
[1693824852069,0.11000027,25905.0,25904.0,2.42481725]
[1693824852209,0.11000027,25905.0,25904.0,2.74877384]
[1693824852414,0.11000027,25905.0,25904.0,1.63676659]
[1693824852623,0.11000027,25905.0,25904.0,2.74850476]
[1693824856987,0.11000027,25905.0,25904.0,2.55549476]
[1693824858009,0.11000027,25905.0,25904.0,2.5670386]
[1693824860952,0.11000027,25905.0,25904.0,1.5716386]
[1693824861163,0.11000027,25905.0,25904.0,1.4790981]
[1693824861389,0.11000027,25905.0,25904.0,1.34025956]
[1693824862530,0.11000027,25905.0,25904.0,1.35972473]
[1693824863724,0.11000027,25905.0,25904.0,1.34572473]
[1693824865245,0.11000027,25905.0,25904.0,1.42612473]
[1693824865450,0.11000027,25905.0,25904.0,1.44112473]
[1693824865632,0.11000027,25905.0,25904.0,1.45512473]
[1693824865830,0.11000027,25905.0,25904.0,1.44012473]
[1693824866037,0.11000027,25905.0,25904.0,1.42612473]
[1693824866224,0.11000027,25905.0,25904.0,1.43212473]
[1693824866426,0.11000027,25905.0,25904.0,1.43712473]
[1693824871903,0.11000027,25905.0,25904.0,1.57596327]
[1693824872766,0.11000027,25905.0,25904.0,1.50617027]
[1693824872975,0.11000027,25905.0,25904.0,1.69128832]
[1693824895021,0.97088403,25905.0,25904.0,1.33064077]
[1693824895238,0.88732176,25905.0,25904.0,1.12273817]
[1693824895438,0.97199054,25905.0,25904.0,0.011]
[1693824895823,0.87659054,25905.0,25904.0,0.006]
[1693824896080,0.87759054,25905.0,25904.0,0.006]
[1693824896285,0.05151975,25901.0,25900.0,0.13201288]
[1693824896493,0.10941575,25901.0,25900.0,0.0954]
[1693824897506,0.10941575,25901.0,25899.0,0.19625393]
[1693824897711,0.10941575,25900.0,25899.0,0.19625393]
[1693824897913,0.10941575,25900.0,25899.0,0.29165393]
[1693824898832,0.11041575,25900.0,25899.0,0.29165393]
[1693824899070,0.11241575,25900.0,25899.0,0.29165393]
[1693824900091,0.09241575,25900.0,25899.0,0.29165393]
[1693824900296,0.11241575,25900.0,25899.0,0.29165393]
[1693824901005,0.10941575,25900.0,25899.0,0.29165393]
[1693824901133,0.10941575,25900.0,25899.0,0.30265393]
[1693824901333,0.10941575,25900.0,25899.0,0.29665393]
[1693824901769,0.10941575,25900.0,25899.0,0.29765393]
[1693824902585,0.10941575,25900.0,25899.0,0.30265393]
[1693824905335,0.10941575,25900.0,25899.0,0.44139675]
[1693824907033,0.10934275,25900.0,25899.0,0.44139675]
[1693824908147,0.10934275,25900.0,25899.0,0.53387952]
[1693824908369,0.10934275,25900.0,25899.0,0.3951367]
[1693824932826,0.40397876,25900.0,25899.0,0.3951367]
[1693824933040,0.79106554,25900.0,25899.0,0.20725393]
[1693824933509,0.79106554,25900.0,25899.0,0.00727626]
[1693824933721,0.79106554,25900.0,25899.0,0.00227626]
[1693824934137,0.79206554,25900.0,25897.0,0.0954]
[1693824934338,0.10934275,25898.0,25897.0,0.0954]
[1693824935610,0.10934275,25898.0,25897.0,0.1004]
[1693824936019,0.34962221,25898.0,25897.0,0.1004]
[1693824936249,0.34962221,25898.0,25897.0,0.1054]
[1693824937031,0.34962221,25898.0,25897.0,0.1004]
[1693824937232,0.34962221,25898.0,25897.0,0.0954]
[1693824937687,0.35962221,25898.0,25897.0,0.0964]
[1693824938462,0.36062221,25898.0,25897.0,0.0964]
[1693824938911,0.35962221,25898.0,25897.0,0.0964]
[1693824939131,0.36062221,25898.0,25897.0,0.0974]
[1693824940152,0.36046021,25898.0,25897.0,0.0974]
[1693824941247,0.74754699,25898.0,25897.0,0.0974]
[1693824941847,0.12018075,25898.0,25897.0,0.0974]
[1693824960671,0.12018075,25898.0,25897.0,0.32862559]
[1693824960878,0.10018075,25898.0,25897.0,0.23614282]
[1693824961282,0.12018075,25898.0,25897.0,0.23614282]
[1693824961605,0.11918075,25898.0,25897.0,0.23514282]
[1693824961714,0.09918075,25898.0,25897.0,0.24014282]
[1693824961920,0.08918075,25898.0,25897.0,0.42414285]
[1693824962397,0.08918075,25898.0,25897.0,0.42914285]